fUST/lending_fUST_20240722
["ID","MTS","AMOUNT","RATE_DAILY","PERIOD"]
[332863513,1721595050282,-500.0,0.0001588,2]
[332863514,1721595050291,-517.10630346,0.0001588,2]
[332863515,1721595050301,-500.0,0.0001588,2]
[332863516,1721595050310,-302.11075514,0.0001588,2]
[332863517,1721595098732,461.35,0.00010959,2]
[332863518,1721595109232,384.46,0.00010959,2]
[332863519,1721595116145,425.86072355,9.999e-05,2]
[332863520,1721595130027,320.38,0.00010959,2]
[332863521,1721595140498,266.99,0.00010959,2]
[332863524,1721595151028,222.49,0.00010959,2]
[332863531,1721595945142,-300.0,9.998e-05,2]
[332863532,1721595945163,-208.46306467,9.999e-05,2]
[332863533,1721595945184,-279.24093716,9.999e-05,2]
[332863534,1721595945205,-887.31675178,9.999e-05,2]
[332863535,1721595945226,-406.17168308,9.999e-05,2]
[332863536,1721596025100,-300.0,9.998e-05,2]
[332863537,1721596025122,-85.80290606,9.999e-05,2]
[332863538,1721596025144,-461.86759732,9.999e-05,2]
[332863539,1721596025166,-259.71685342,9.999e-05,2]
[332863540,1721596025187,-215.88591795,9.999e-05,2]
[332863541,1721596025209,-154.76014033,9.999e-05,2]
[332863542,1721596025231,-212.15815895,9.999e-05,2]
[332863543,1721596025255,-538.66804263,9.999e-05,2]
[332863544,1721596025276,-75.97376479,9.999e-05,2]
[332863545,1721596038109,-78.80179828,9.999e-05,2]
[332863546,1721596038131,-180.26214213,9.999e-05,2]
[332863547,1721596038151,-526.40635673,9.999e-05,2]
[332863548,1721596038171,-154.74467129,9.999e-05,2]
[332863549,1721596038192,-273.12497908,9.999e-05,2]
[332863550,1721596038213,-929.60114012,9.999e-05,2]
[332863551,1721596038234,-191.82457682,9.999e-05,2]
[332863552,1721596044091,-31.77093951,9.999e-05,2]
[332863553,1721596044114,-155.12244729,9.999e-05,2]
[332863554,1721596044135,-941.49835413,9.999e-05,2]
[332863555,1721596044155,-155.1777375,9.999e-05,2]
[332863556,1721596044176,-156.1851457,9.999e-05,2]
[332863557,1721596044198,-609.37216603,9.999e-05,2]
[332863558,1721596044218,-483.71404248,9.999e-05,2]
[332863559,1721596044237,-251.31725499,9.999e-05,2]
[332863560,1721596044257,-38.72903031,9.999e-05,2]
[332863561,1721596047091,-511.81925416,9.999e-05,2]
[332863562,1721596047113,-307.31932562,9.999e-05,2]
[332863563,1721596047139,-188.02682589,9.999e-05,2]
[332863564,1721596047161,-260.62042326,9.999e-05,2]
[332863565,1721596047187,-406.18397509,9.999e-05,2]
[332863566,1721596047211,-287.42676554,0.0001,2]
[332863567,1721596047234,-146.51136526,0.00010959,2]
[332863568,1721596116075,2000.0,7.15e-05,2]
[332863569,1721596148303,-179.71977966,9.999e-05,2]
[332863570,1721596148327,-154.88377535,9.999e-05,2]
[332863571,1721596148348,-526.40635673,9.999e-05,2]
[332863572,1721596148370,-188.02682589,9.999e-05,2]
[332863573,1721596148393,-470.2848221,9.999e-05,2]
[332863574,1721596148416,-526.40635673,9.999e-05,2]
[332863575,1721596148440,-233.00412204,0.0001,2]
[332863576,1721596148467,-300.0,0.00010958,2]
[332863577,1721596148495,-38.89863474,0.00010959,2]
[332863578,1721596148519,-154.5,0.00010959,2]
[332863579,1721596148548,-772.55,0.00010959,2]
[332863580,1721596148571,-218.09499306,0.00010959,2]
[332863581,1721596148598,-2398.88279836,0.00010959,2]
[332863582,1721596148621,-293.1268563,0.00011075,2]
[332863583,1721596148645,-199.820844,0.00011319,2]
[332863584,1721596148669,-199.820844,0.00011614,2]
[332863585,1721596148693,-199.820844,0.00011909,2]
[332863586,1721596148715,-941.49835413,0.0001212,2]
[332863588,1721596175174,427.53260115,9.999e-05,2]
[332863589,1721596186005,188.02682589,8.667e-05,2]
[332863590,1721596190953,295.79820436,8.667e-05,2]
[332863591,1721596200115,523.2093069,8.667e-05,2]
[332863593,1721596227681,285.0217341,0.00010505,2]
[332863616,1721596232032,-1727.30246662,0.00013598,2]
[332863617,1721596232043,-1985.8041671,0.00013598,2]
[332863618,1721596232053,-837.33614258,0.00013688,2]
[332863619,1721596235044,188.02682589,0.00010505,2]
[332863650,1721596238090,-547.3820516,0.00013688,2]
[332863654,1721596238206,-2147.12798362,0.00013688,2]
[332863655,1721596238711,-2527.733566,0.00013688,2]
[332863658,1721596240122,-14134.40960426,0.00013688,2]
[332863659,1721596240240,-64753.18560574,0.00013688,2]
[332863660,1721596240250,-500.0,0.00013698,2]
[332863661,1721596240260,-500.0,0.00013698,2]
[332863662,1721596240270,-500.0,0.00013698,2]
[332863663,1721596240280,-183.57010936,0.00013698,2]
[332863664,1721596240290,-500.0,0.00013698,2]
[332863665,1721596240300,-500.0,0.00013698,2]
[332863666,1721596240310,-500.0,0.00013698,2]
[332863667,1721596240321,-500.0,0.00013698,2]
[332863668,1721596240330,-500.0,0.00013698,2]
[332863669,1721596240340,-500.0,0.00013698,2]
[332863670,1721596240350,-503.0,0.00013698,2]
[332863671,1721596240360,-500.0,0.00013698,2]
[332863672,1721596240370,-500.0,0.00013698,2]
[332863673,1721596240380,-500.0,0.00013698,2]
[332863674,1721596240390,-500.0,0.00013698,2]
[332863675,1721596240399,-500.0,0.00013698,2]
[332863676,1721596240408,-500.0,0.00013698,2]
[332863677,1721596240418,-500.0,0.00013698,2]
[332863678,1721596240427,-500.0,0.00013698,2]
[332863679,1721596240437,-572.41582763,0.00013698,2]
[332863680,1721596240447,-500.0,0.00013698,2]
[332863681,1721596240457,-430.44968673,0.00013698,2]
[332863682,1721596240467,-500.0,0.00013698,2]
[332863683,1721596240476,-500.0,0.00013698,2]
[332863684,1721596240493,-500.0,0.00013698,2]
[332863685,1721596240502,-500.0,0.00013698,2]
[332863686,1721596240512,-500.0,0.00013698,2]
[332863687,1721596240521,-500.0,0.00013698,2]
[332863688,1721596240531,-500.0,0.00013698,2]
[332863689,1721596240540,-592.04177035,0.00013698,2]
[332863690,1721596240550,-500.0,0.00013698,2]
[332863691,1721596240559,-500.0,0.00013698,2]
[332863692,1721596240568,-500.0,0.00013698,2]
[332863693,1721596240578,-504.15613984,0.00013698,2]
[332863694,1721596240587,-500.0,0.00013698,2]
[332863695,1721596240597,-500.0,0.00013698,2]
[332863696,1721596240606,-500.0,0.00013698,2]
[332863697,1721596240615,-550.71981538,0.00013698,2]
[332863698,1721596240624,-570.97,0.00013698,2]
[332863699,1721596240634,-500.0,0.00013698,2]
[332863700,1721596240643,-500.0,0.00013698,2]
[332863701,1721596240653,-500.0,0.00013698,2]
[332863702,1721596240662,-500.0,0.00013698,2]
[332863703,1721596240672,-625.58,0.00013698,2]
[332863704,1721596240681,-500.0,0.00013698,2]
[332863705,1721596240690,-500.0,0.00013698,2]
[332863706,1721596240700,-500.0,0.00013698,2]
[332863707,1721596240709,-500.0,0.00013698,2]
[332863708,1721596240719,-500.0,0.00013698,2]
[332863709,1721596240733,-500.0,0.00013698,2]
[332863710,1721596240742,-640.87,0.00013698,2]
[332863711,1721596240751,-500.0,0.00013698,2]
[332863712,1721596240761,-1063.55,0.00013698,2]
[332863713,1721596240771,-1063.55,0.00013698,2]
[332863714,1721596240783,-1063.55,0.00013698,2]
[332863715,1721596240792,-1063.55,0.00013698,2]
[332863716,1721596240802,-1063.55,0.00013698,2]
[332863717,1721596240812,-500.0,0.00013698,2]
[332863718,1721596240821,-1063.55,0.00013698,2]
[332863719,1721596240831,-500.0,0.00013698,2]
[332863720,1721596240841,-1063.55,0.00013698,2]
[332863721,1721596240851,-500.0,0.00013698,2]
[332863722,1721596240860,-1063.55,0.00013698,2]
[332863723,1721596240870,-1063.55,0.00013698,2]
[332863724,1721596240880,-1063.55,0.00013698,2]
[332863725,1721596240889,-1063.55,0.00013698,2]
[332863726,1721596240899,-1063.55,0.00013698,2]
[332863727,1721596240908,-1063.55,0.00013698,2]
[332863728,1721596240917,-1063.55,0.00013698,2]
[332863729,1721596240931,-500.0,0.00013698,2]
[332863730,1721596240944,-500.0,0.00013698,2]
[332863731,1721596240953,-1063.55,0.00013698,2]
[332863732,1721596240962,-1063.55,0.00013698,2]
[332863733,1721596240973,-1063.55,0.00013698,2]
[332863734,1721596240984,-1063.55,0.00013698,2]
[332863735,1721596240993,-1063.55,0.00013698,2]
[332863751,1721596241181,-1063.55,0.00013698,2]
[332863752,1721596241192,-1063.55,0.00013698,2]
[332863754,1721596241201,-1063.55,0.00013698,2]
[332863755,1721596241210,-1063.55,0.00013698,2]
[332863756,1721596241219,-1063.71749459,0.00013698,2]
[332863757,1721596241231,-500.0,0.00013698,2]
[332863758,1721596241240,-500.0,0.00013698,2]
[332863759,1721596241249,-500.0,0.00013698,2]
[332863760,1721596241258,-1785.95,0.00013698,2]
[332863761,1721596241268,-500.0,0.00013698,2]
[332863762,1721596241278,-500.0,0.00013698,2]
[332863763,1721596241287,-500.0,0.00013698,2]
[332863764,1721596241297,-500.0,0.00013698,2]
[332863765,1721596241306,-500.0,0.00013698,2]
[332863766,1721596241316,-500.0,0.00013698,2]
[332863767,1721596241325,-500.0,0.00013698,2]
[332863768,1721596241335,-500.0,0.00013698,2]
[332863769,1721596241344,-500.0,0.00013698,2]
[332863770,1721596241353,-500.0,0.00013698,2]
[332863771,1721596241363,-500.0,0.00013698,2]
[332863772,1721596241372,-500.0,0.00013698,2]
[332863773,1721596241381,-500.0,0.00013698,2]
[332863774,1721596241390,-500.0,0.00013698,2]
[332863775,1721596241399,-500.0,0.00013698,2]
[332863776,1721596241408,-507.74759922,0.00013698,2]
[332863777,1721596241418,-500.0,0.00013698,2]
[332863778,1721596241427,-500.0,0.00013698,2]
[332863779,1721596241436,-500.0,0.00013698,2]
[332863780,1721596241445,-500.0,0.00013698,2]
[332863781,1721596241454,-500.0,0.00013698,2]
[332863782,1721596241463,-521.07,0.00013698,2]
[332863783,1721596241472,-500.0,0.00013698,2]
[332863784,1721596241483,-500.0,0.00013698,2]
[332863785,1721596241492,-500.0,0.00013698,2]
[332863786,1721596241502,-500.0,0.00013698,2]
[332863787,1721596241511,-500.0,0.00013698,2]
[332863788,1721596241521,-500.0,0.00013698,2]
[332863789,1721596241530,-500.0,0.00013698,2]
[332863790,1721596241539,-500.0,0.00013698,2]
[332863791,1721596241548,-500.0,0.00013698,2]
[332863792,1721596241557,-500.0,0.00013698,2]
[332863793,1721596241566,-500.0,0.00013698,2]
[332863794,1721596241576,-500.0,0.00013698,2]
[332863795,1721596241585,-500.0,0.00013698,2]
[332863796,1721596241594,-500.0,0.00013698,2]
[332863797,1721596241604,-398.13892911,0.00013698,2]
[332863798,1721596241613,-500.0,0.00013698,2]
[332863799,1721596241622,-500.0,0.00013698,2]
[332863800,1721596241631,-500.0,0.00013698,2]
[332863801,1721596241640,-151.26439546,0.00013698,2]
[332863802,1721596241650,-500.0,0.00013698,2]
[332863803,1721596241659,-467.3288532,0.00013698,2]
[332863804,1721596241668,-500.0,0.00013698,2]
[332863805,1721596241678,-500.0,0.00013698,2]
[332863806,1721596241687,-500.0,0.00013698,2]
[332863807,1721596241697,-500.0,0.00013698,2]
[332863808,1721596241706,-500.0,0.00013698,2]
[332863809,1721596241716,-500.0,0.00013698,2]
[332863810,1721596241725,-500.0,0.00013698,2]
[332863811,1721596241737,-500.0,0.00013698,2]
[332863812,1721596241746,-500.0,0.00013698,2]
[332863813,1721596241756,-533.52163942,0.00013698,2]
[332863814,1721596241766,-500.0,0.00013698,2]
[332863815,1721596241775,-500.0,0.00013698,2]
[332863816,1721596241785,-500.0,0.00013698,2]
[332863817,1721596241794,-500.0,0.00013698,2]
[332863818,1721596241803,-251.95448152,0.00013698,2]
[332863819,1721596241812,-500.0,0.00013698,2]
[332863820,1721596241821,-500.0,0.00013698,2]
[332863821,1721596241832,-500.0,0.00013698,2]
[332863822,1721596241841,-500.0,0.00013698,2]
[332863823,1721596241851,-500.0,0.00013698,2]
[332863824,1721596241860,-500.0,0.00013698,2]
[332863825,1721596241869,-600.86,0.00013698,2]
[332863826,1721596241878,-500.0,0.00013698,2]
[332863827,1721596241887,-826.61,0.00013698,2]
[332863828,1721596241896,-500.0,0.00013698,2]
[332863829,1721596241906,-500.0,0.00013698,2]
[332863830,1721596241916,-500.0,0.00013698,2]
[332863831,1721596241927,-500.0,0.00013698,2]
[332863832,1721596241940,-500.0,0.00013698,2]
[332863833,1721596241949,-500.0,0.00013698,2]
[332863834,1721596241959,-154.74467129,0.00013698,2]
[332863835,1721596241969,-227.5005451,0.00013698,2]
[332863836,1721596241979,-500.0,0.00013698,2]
[332863837,1721596241992,-464.08090274,0.00013698,2]
[332863838,1721596242001,-500.0,0.00013698,2]
[332863839,1721596242014,-330.35986295,0.00013698,2]
[332863840,1721596242024,-500.0,0.00013698,2]
[332863841,1721596242034,-444.5983193,0.00013698,2]
[332863842,1721596242043,-500.0,0.00013698,2]
[332863843,1721596242053,-500.0,0.00013698,2]
[332863844,1721596242062,-500.0,0.00013698,2]
[332863845,1721596242072,-500.0,0.00013698,2]
[332863846,1721596242082,-500.0,0.00013698,2]
[332863847,1721596242091,-209.69,0.00013698,2]
[332863848,1721596242101,-518.63,0.00013698,2]
[332863849,1721596242110,-500.0,0.00013698,2]
[332863850,1721596242121,-500.0,0.00013698,2]
[332863851,1721596242130,-500.0,0.00013698,2]
[332863852,1721596242140,-447.83,0.00013698,2]
[332863853,1721596242150,-500.0,0.00013698,2]
[332863854,1721596242160,-500.0,0.00013698,2]
[332863855,1721596242168,-500.0,0.00013698,2]
[332863856,1721596242178,-500.0,0.00013698,2]
[332863857,1721596242187,-500.0,0.00013698,2]
[332863858,1721596242197,-500.0,0.00013698,2]
[332863859,1721596242206,-500.0,0.00013698,2]
[332863860,1721596242215,-500.0,0.00013698,2]
[332863861,1721596242225,-500.0,0.00013698,2]
[332863862,1721596242236,-629.49,0.00013698,2]
[332863863,1721596242246,-500.0,0.00013698,2]
[332863864,1721596242256,-500.0,0.00013698,2]
[332863865,1721596242266,-291.04,0.00013698,2]
[332863866,1721596242275,-500.0,0.00013698,2]
[332863867,1721596242284,-500.0,0.00013698,2]
[332863868,1721596242293,-500.0,0.00013698,2]
[332863869,1721596242303,-500.0,0.00013698,2]
[332863870,1721596242313,-500.0,0.00013698,2]
[332863871,1721596242323,-500.0,0.00013698,2]
[332863872,1721596242332,-500.0,0.00013698,2]
[332863873,1721596242341,-500.0,0.00013698,2]
[332863874,1721596242350,-500.0,0.00013698,2]
[332863875,1721596242360,-500.0,0.00013698,2]
[332863876,1721596242370,-320.7322929,0.00013698,2]
[332863877,1721596242380,-500.0,0.00013698,2]
[332863878,1721596242389,-500.0,0.00013698,2]
[332863879,1721596242398,-500.0,0.00013698,2]
[332863880,1721596242407,-500.0,0.00013698,2]
[332863881,1721596242417,-500.0,0.00013698,2]
[332863882,1721596242426,-500.0,0.00013698,2]
[332863883,1721596242436,-500.0,0.00013698,2]
[332863884,1721596242445,-500.0,0.00013698,2]
[332863885,1721596242455,-500.0,0.00013698,2]
[332863886,1721596242465,-500.0,0.00013698,2]
[332863887,1721596242474,-500.0,0.00013698,2]
[332863888,1721596242486,-500.0,0.00013698,2]
[332863889,1721596242495,-500.0,0.00013698,2]
[332863890,1721596242505,-500.0,0.00013698,2]
[332863891,1721596242514,-500.0,0.00013698,2]
[332863892,1721596242523,-500.0,0.00013698,2]
[332863893,1721596242533,-500.0,0.00013698,2]
[332863894,1721596242542,-500.0,0.00013698,2]
[332863895,1721596242552,-500.0,0.00013698,2]
[332863896,1721596242561,-500.0,0.00013698,2]
[332863897,1721596242570,-500.0,0.00013698,2]
[332863898,1721596242579,-500.0,0.00013698,2]
[332863899,1721596242589,-500.0,0.00013698,2]
[332863900,1721596242598,-522.68,0.00013698,2]
[332863901,1721596242607,-619.31853405,0.00013698,2]
[332863902,1721596242616,-500.0,0.00013698,2]
[332863903,1721596242625,-541.32,0.00013698,2]
[332863904,1721596242635,-500.0,0.00013698,2]
[332863905,1721596242644,-500.0,0.00013698,2]
[332863906,1721596242653,-500.0,0.00013698,2]
[332863907,1721596242663,-577.62,0.00013698,2]
[332863908,1721596242672,-500.0,0.00013698,2]
[332863909,1721596242681,-500.0,0.00013698,2]
[332863910,1721596242690,-500.0,0.00013698,2]
[332863911,1721596242700,-500.0,0.00013698,2]
[332863912,1721596242709,-500.0,0.00013698,2]
[332863913,1721596242718,-500.0,0.00013698,2]
[332863914,1721596242728,-500.0,0.00013698,2]
[332863915,1721596242741,-500.0,0.00013698,2]
[332863916,1721596242751,-570.09,0.00013698,2]
[332863917,1721596242760,-500.0,0.00013698,2]
[332863918,1721596242770,-413.67578848,0.00013698,2]
[332863920,1721596242779,-150.0,0.00013698,2]
[332863924,1721596242788,-500.0,0.00013698,2]
[332863927,1721596242798,-500.0,0.00013698,2]
[332863929,1721596242807,-500.0,0.00013698,2]
[332863931,1721596242816,-418.79387608,0.00013698,2]
[332863933,1721596242825,-500.0,0.00013698,2]
[332863935,1721596242835,-500.0,0.00013698,2]
[332863937,1721596242845,-500.0,0.00013698,2]
[332863939,1721596242854,-500.0,0.00013698,2]
[332863941,1721596242864,-470.32,0.00013698,2]
[332863943,1721596242873,-500.0,0.00013698,2]
[332863945,1721596242883,-353.88502298,0.00013698,2]
[332863947,1721596242892,-500.0,0.00013698,2]
[332863950,1721596242901,-500.0,0.00013698,2]
[332863952,1721596242910,-500.0,0.00013698,2]
[332863954,1721596242920,-184.23,0.00013698,2]
[332863956,1721596242931,-450.95,0.00013698,2]
[332863958,1721596242943,-529.64,0.00013698,2]
[332863960,1721596242953,-500.0,0.00013698,2]
[332863963,1721596242962,-414.21224949,0.00013698,2]
[332863966,1721596242972,-500.0,0.00013698,2]
[332863968,1721596242981,-500.0,0.00013698,2]
[332863972,1721596242992,-500.0,0.00013698,2]
[332863974,1721596243003,-500.0,0.00013698,2]
[332863977,1721596243012,-500.0,0.00013698,2]
[332863980,1721596243021,-500.0,0.00013698,2]
[332863983,1721596243031,-500.0,0.00013698,2]
[332863986,1721596243040,-500.0,0.00013698,2]
[332863988,1721596243049,-500.0,0.00013698,2]
[332863991,1721596243058,-500.0,0.00013698,2]
[332863994,1721596243067,-411.76555051,0.00013698,2]
[332863997,1721596243076,-500.0,0.00013698,2]
[332864000,1721596243085,-377.65,0.00013698,2]
[332864002,1721596243095,-531.70213675,0.00013698,2]
[332864004,1721596243105,-156.28,0.00013698,2]
[332864006,1721596243115,-500.0,0.00013698,2]
[332864009,1721596243125,-500.0,0.00013698,2]
[332864012,1721596243136,-500.70336209,0.00013698,2]
[332864014,1721596243145,-575.57,0.00013698,2]
[332864016,1721596243154,-500.0,0.00013698,2]
[332864018,1721596243163,-500.0,0.00013698,2]
[332864020,1721596243172,-374.31411848,0.00013698,2]
[332864022,1721596243181,-500.0,0.00013698,2]
[332864024,1721596243191,-289.11110902,0.00013698,2]
[332864026,1721596243201,-235.89,0.00013698,2]
[332864028,1721596243210,-500.0,0.00013698,2]
[332864030,1721596243219,-629.06,0.00013698,2]
[332864033,1721596243246,-563.3932499,0.00013698,2]
[332864035,1721596243256,-500.0,0.00013698,2]
[332864037,1721596243267,-500.0,0.00013698,2]
[332864039,1721596243276,-500.0,0.00013698,2]
[332864041,1721596243286,-500.0,0.00013698,2]
[332864043,1721596243296,-500.0,0.00013698,2]
[332864045,1721596243306,-181.62474517,0.00013698,2]
[332864047,1721596243315,-500.0,0.00013698,2]
[332864049,1721596243325,-258.41644178,0.00013698,2]
[332864050,1721596243335,-381.02329938,0.00013698,2]
[332864052,1721596243345,-500.0,0.00013698,2]
[332864054,1721596243355,-328.56194156,0.00013698,2]
[332864055,1721596243364,-500.0,0.00013698,2]
[332864056,1721596243374,-500.0,0.00013698,2]
[332864057,1721596243383,-500.0,0.00013698,2]
[332864058,1721596243393,-500.0,0.00013698,2]
[332864059,1721596243403,-500.0,0.00013698,2]
[332864060,1721596243412,-500.0,0.00013698,2]
[332864061,1721596243422,-500.0,0.00013698,2]
[332864062,1721596243431,-500.0,0.00013698,2]
[332864063,1721596243441,-497.77365721,0.00013698,2]
[332864064,1721596243450,-500.0,0.00013698,2]
[332864065,1721596243460,-500.0,0.00013698,2]
[332864066,1721596243470,-500.0,0.00013698,2]
[332864067,1721596243480,-500.0,0.00013698,2]
[332864068,1721596243494,-262.78079801,0.00013698,2]
[332864069,1721596243504,-500.0,0.00013698,2]
[332864070,1721596243514,-500.0,0.00013698,2]
[332864071,1721596243525,-500.0,0.00013698,2]
[332864072,1721596243535,-500.0,0.00013698,2]
[332864073,1721596243544,-500.0,0.00013698,2]
[332864074,1721596243554,-500.0,0.00013698,2]
[332864075,1721596243565,-650.0,0.00013698,2]
[332864076,1721596243576,-500.0,0.00013698,2]
[332864077,1721596243588,-500.0,0.00013698,2]
[332864078,1721596243599,-500.0,0.00013698,2]
[332864079,1721596243608,-500.0,0.00013698,2]
[332864080,1721596243619,-500.0,0.00013698,2]
[332864081,1721596243629,-500.0,0.00013698,2]
[332864082,1721596243638,-500.0,0.00013698,2]
[332864083,1721596243648,-500.0,0.00013698,2]
[332864084,1721596243657,-500.0,0.00013698,2]
[332864085,1721596243668,-500.0,0.00013698,2]
[332864086,1721596243678,-500.0,0.00013698,2]
[332864087,1721596243688,-500.0,0.00013698,2]
[332864088,1721596243699,-500.0,0.00013698,2]
[332864089,1721596243710,-500.0,0.00013698,2]
[332864090,1721596243722,-500.0,0.00013698,2]
[332864091,1721596243732,-500.0,0.00013698,2]
[332864092,1721596243745,-500.0,0.00013698,2]
[332864093,1721596243755,-500.0,0.00013698,2]
[332864094,1721596243765,-500.0,0.00013698,2]
[332864095,1721596243775,-500.0,0.00013698,2]
[332864096,1721596243784,-1735.862318,0.00013699,2]
[332864097,1721596243794,-3000.0,0.00013699,2]
[332864098,1721596243804,-9308.8409744,0.00013699,2]
[332864099,1721596243814,-28315.7249846,0.00013962,2]
[332864100,1721596243823,-522.55,0.00013972,2]
[332864101,1721596243835,-500.0,0.00013972,2]
[332864102,1721596243844,-500.0,0.00013972,2]
[332864103,1721596243855,-500.0,0.00013972,2]
[332864104,1721596243866,-351.92,0.00013972,2]
[332864105,1721596243878,-500.0,0.00013972,2]
[332864106,1721596243890,-500.0,0.00013972,2]
[332864107,1721596243901,-500.0,0.00013972,2]
[332864108,1721596243912,-187.45,0.00013972,2]
[332864109,1721596243923,-500.0,0.00013972,2]
[332864110,1721596243937,-500.0,0.00013972,2]
[332864111,1721596243949,-228.3,0.00013972,2]
[332864112,1721596243959,-500.0,0.00013972,2]
[332864113,1721596243969,-500.0,0.00013972,2]
[332864114,1721596243979,-617.56,0.00013972,2]
[332864115,1721596243994,-500.0,0.00013972,2]
[332864116,1721596244005,-207.28,0.00013972,2]
[332864117,1721596244015,-150.65,0.00013972,2]
[332864118,1721596244026,-500.0,0.00013972,2]
[332864119,1721596244035,-168.6,0.00013972,2]
[332864120,1721596244044,-500.0,0.00013972,2]
[332864121,1721596244054,-500.0,0.00013972,2]
[332864122,1721596244063,-500.0,0.00013972,2]
[332864123,1721596244079,-500.0,0.00013972,2]
[332864124,1721596244090,-500.0,0.00013972,2]
[332864125,1721596244100,-263.84,0.00013972,2]
[332864126,1721596244111,-500.0,0.00013972,2]
[332864127,1721596244124,-1785.95,0.00013972,2]
[332864128,1721596244136,-500.0,0.00013972,2]
[332864129,1721596244148,-419.18,0.00013972,2]
[332864130,1721596244158,-500.0,0.00013972,2]
[332864131,1721596244168,-500.0,0.00013972,2]
[332864132,1721596244178,-500.0,0.00013972,2]
[332864133,1721596244187,-500.0,0.00013972,2]
[332864134,1721596244199,-500.0,0.00013972,2]
[332864135,1721596244211,-500.0,0.00013972,2]
[332864136,1721596244222,-500.0,0.00013972,2]
[332864137,1721596244231,-500.0,0.00013972,2]
[332864138,1721596244244,-612.39,0.00013972,2]
[332864139,1721596244255,-458.19,0.00013972,2]
[332864140,1721596244265,-426.86,0.00013972,2]
[332864141,1721596244274,-500.0,0.00013972,2]
[332864142,1721596244284,-500.0,0.00013972,2]
[332864143,1721596244293,-521.07,0.00013972,2]
[332864144,1721596244303,-289.41,0.00013972,2]
[332864145,1721596244313,-500.0,0.00013972,2]
[332864146,1721596244324,-500.0,0.00013972,2]
[332864147,1721596244334,-372.22373405,0.00013972,2]
[332864148,1721596244344,-150.02,0.00013972,2]
[332864149,1721596244354,-500.0,0.00013972,2]
[332864150,1721596244363,-500.0,0.00013972,2]
[332864151,1721596244373,-500.0,0.00013972,2]
[332864152,1721596244382,-500.0,0.00013972,2]
[332864153,1721596244392,-500.0,0.00013972,2]
[332864154,1721596244401,-287.83,0.00013972,2]
[332864155,1721596244411,-500.0,0.00013972,2]
[332864156,1721596244420,-500.0,0.00013972,2]
[332864157,1721596244430,-500.0,0.00013972,2]
[332864158,1721596244439,-500.0,0.00013972,2]
[332864159,1721596244449,-500.0,0.00013972,2]
[332864160,1721596244459,-421.68,0.00013972,2]
[332864161,1721596244469,-354.8,0.00013972,2]
[332864162,1721596244478,-500.0,0.00013972,2]
[332864163,1721596244489,-384.92779164,0.00013972,2]
[332864164,1721596244499,-500.0,0.00013972,2]
[332864165,1721596244509,-344.2,0.00013972,2]
[332864166,1721596244519,-500.0,0.00013972,2]
[332864167,1721596244528,-500.0,0.00013972,2]
[332864168,1721596244538,-826.61,0.00013972,2]
[332864169,1721596244547,-306.35,0.00013972,2]
[332864170,1721596244556,-500.0,0.00013972,2]
[332864171,1721596244567,-500.0,0.00013972,2]
[332864172,1721596244579,-500.0,0.00013972,2]